bitfinex/quotes_ETHUSD_20250807
["timestamp","ask_amount","ask_price","bid_price","bid_amount"]
[1754536571329,0.1368,3659.4,3659.3,0.4772]
[1754536571554,4.2828,3659.4,3659.3,0.4772]
[1754536571776,0.389916,3659.4,3659.3,3.46826309]
[1754536571976,0.1368,3659.6,3659.3,1.35561308]
[1754536572163,0.1368,3659.6,3659.5,2.73261374]
[1754536572366,4.2838,3659.6,3659.5,2.73261374]
[1754536572681,4.147,3659.6,3659.5,3.46811374]
[1754536573690,0.001,3660.2,3659.5,3.46811374]
[1754536573691,0.1368,3660.1,3660.0,2.73224043]
[1754536573878,0.1368,3660.1,3660.0,3.20944043]
[1754536573879,4.2838,3660.1,3660.0,3.20944043]
[1754536574067,4.2838,3660.1,3660.0,0.4772]
[1754536574266,4.53705545,3660.1,3660.0,0.4772]
[1754536574469,4.53705545,3660.1,3659.5,2.86934419]
[1754536574683,4.2838,3660.1,3659.8,0.4772]
[1754536575093,4.2838,3660.1,3659.9,3.20950625]
[1754536575392,4.2838,3660.1,3659.9,2.73230625]
[1754536575689,4.2838,3660.1,3660.0,3.20944043]
[1754536577106,4.2838,3660.1,3660.0,0.4772]
[1754536577460,4.2838,3660.1,3659.9,2.73230022]
[1754536577776,4.2838,3660.1,3659.9,3.20950022]
[1754536577972,4.2838,3660.1,3660.0,2.73224043]
[1754536578282,4.2838,3660.1,3660.0,3.20944043]
[1754536580209,4.2838,3660.1,3659.8,2.73233018]
[1754536580389,0.9419,3660.0,3659.5,2.73254949]
[1754536580595,1.0787,3659.9,3659.5,2.73254949]
[1754536580769,4.5994,3659.8,3659.5,2.73254949]
[1754536581098,4.5994,3659.8,3659.6,2.73251252]
[1754536581298,4.145,3659.8,3659.6,2.73251252]
[1754536581607,4.145,3659.8,3659.5,2.73259864]
[1754536581768,4.5994,3659.8,3659.5,2.73259864]
[1754536581967,4.6325,3659.8,3659.5,2.73259864]
[1754536582194,1.0787,3659.7,3659.5,2.73259864]
[1754536582503,0.5912,3659.7,3659.5,2.73259864]
[1754536582702,0.1368,3659.7,3659.5,2.73259864]
[1754536582880,0.1368,3659.7,3659.6,2.73253907]
[1754536583087,0.1368,3659.7,3659.5,2.73259723]
[1754536583903,0.1368,3659.7,3659.3,2.73276175]
[1754536583904,0.5912,3659.7,3659.3,2.73276175]
[1754536584210,0.5912,3659.7,3659.3,3.22746175]
[1754536584508,0.6243,3659.7,3659.2,2.8696163]
[1754536584684,0.4544,3659.6,3659.2,3.2275163]
[1754536585003,4.143,3659.5,3659.2,3.2275163]
[1754536585211,0.9419,3659.4,3659.1,0.1368]
[1754536585378,1.41863,3659.4,3659.1,0.1368]
[1754536585588,9.67426618,3659.2,3658.9,0.002]
[1754536585775,0.1368,3659.0,3658.9,0.002]
[1754536586515,1.0787,3659.0,3658.9,0.002]
[1754536586817,0.1368,3659.0,3658.9,0.002]
[1754536587217,4.145,3659.0,3658.9,0.002]
[1754536588108,4.145,3659.0,3658.9,0.4967]
[1754536588281,4.146,3659.0,3658.9,0.002]
[1754536588981,5.0879,3659.0,3658.9,0.002]
[1754536589790,6.57779662,3659.0,3658.9,0.002]
[1754536590522,9.31078377,3659.0,3658.9,0.002]
[1754536591289,12.31078377,3659.0,3658.9,0.002]
[1754536594460,13.11411603,3659.0,3658.9,0.002]
[1754536598881,13.32058679,3659.0,3658.9,0.002]
[1754536599240,10.58759964,3659.0,3658.9,0.002]
[1754536599441,9.83112888,3659.0,3658.9,0.002]
[1754536599681,12.56411603,3659.0,3658.9,0.002]
[1754536599979,13.11411603,3659.0,3658.9,0.002]
[1754536601478,13.3229447,3659.0,3658.9,0.002]
[1754536603453,13.3229447,3659.0,3658.2,0.002]
[1754536603454,3.55,3658.5,3658.2,0.002]
[1754536603643,15.95777628,3658.3,3658.2,0.002]
[1754536603843,16.21083644,3658.3,3658.2,0.002]
[1754536604038,17.15273644,3658.3,3658.2,0.002]
[1754536604751,16.89967628,3658.3,3658.2,0.002]
[1754536605088,19.27808527,3658.3,3658.2,0.002]
[1754536605454,19.53100652,3658.3,3658.2,0.002]
[1754536605847,22.74008857,3658.3,3658.2,0.002]
[1754536606061,23.68198857,3658.3,3658.2,0.002]
[1754536606989,7.4039033,3658.3,3658.2,0.002]
[1754536607189,10.13734836,3658.3,3658.2,0.4967]
[1754536607484,10.13734836,3658.3,3658.2,0.002]
[1754536607673,7.40383826,3658.3,3658.2,0.002]
[1754536607869,7.40383826,3658.3,3658.2,0.4967]
[1754536608076,3.25283826,3658.3,3658.2,0.4967]
[1754536608281,7.40383826,3658.3,3658.2,0.4967]
[1754536608478,7.151,3658.3,3658.2,0.4967]
[1754536609346,7.151,3658.3,3658.2,0.002]
[1754536609752,7.151,3658.3,3658.2,0.4967]
[1754536612651,3.0,3659.1,3658.2,1.1078542]
[1754536612854,4.156,3659.0,3658.3,0.7208]
[1754536613058,4.156,3658.9,3658.8,2.73308883]
[1754536613398,4.156,3658.9,3658.8,3.19558883]
[1754536613563,4.156,3658.9,3658.8,3.45388883]
[1754536613963,4.2928,3658.9,3658.8,3.45388883]
[1754536614486,4.2928,3658.9,3658.8,3.19558883]
[1754536614661,4.2928,3658.9,3658.8,0.4625]
[1754536615001,4.2938,3658.9,3658.6,0.4625]
[1754536615200,4.2938,3658.9,3658.5,2.73335499]
[1754536615378,4.2938,3658.9,3658.7,0.4625]
[1754536616003,4.2938,3658.9,3658.6,2.73327897]
[1754536616398,4.2938,3658.9,3658.7,3.19569315]
[1754536617102,4.2938,3658.9,3658.7,0.4625]
[1754536617464,4.2938,3658.9,3658.3,3.12860672]
[1754536617671,4.2938,3658.9,3658.5,2.73329698]
[1754536617871,4.2938,3658.9,3658.5,0.4625]
[1754536618168,4.2938,3658.9,3658.6,0.4625]
[1754536618371,4.2938,3658.9,3658.5,2.7332986]
[1754536618571,5.2286,3658.9,3658.5,2.7332986]
[1754536619566,4.7839,3658.9,3658.5,2.7332986]
[1754536619785,5.2286,3658.9,3658.5,2.7332986]
[1754536620514,4.6471,3658.9,3658.4,2.73342788]
[1754536620686,0.1368,3658.6,3658.4,2.73342788]
[1754536620871,4.153,3658.5,3658.3,0.4625]
[1754536621076,4.153,3658.5,3658.2,0.002]
[1754536621077,0.1368,3658.4,3658.2,0.002]
[1754536621370,4.153,3658.3,3658.2,0.002]
[1754536622078,4.153,3658.3,3658.2,2.73558482]
[1754536622268,4.153,3658.3,3658.2,3.19808482]
[1754536622718,4.153,3658.3,3658.2,3.45638482]
[1754536623010,4.153,3658.3,3658.2,4.05376499]
[1754536625298,4.153,3658.3,3658.2,3.79546499]
[1754536631131,4.153,3658.3,3658.2,1.06188017]
[1754536631301,4.153,3658.3,3658.2,0.002]
[1754536631703,4.153,3658.3,3658.2,2.73558482]
[1754536631886,4.153,3658.3,3658.2,3.19808482]
[1754536634320,4.153,3658.3,3658.2,0.002]
[1754536634516,5.0878,3658.3,3658.2,0.002]
[1754536635038,5.2246,3658.3,3658.2,0.002]
[1754536639168,4.2898,3658.3,3658.2,0.002]
[1754536639458,4.2898,3658.3,3658.2,0.4645]
[1754536639812,4.2898,3658.3,3658.2,0.002]
[1754536641541,4.2898,3658.3,3658.2,2.73558482]
[1754536641748,4.2898,3658.3,3658.2,0.002]
[1754536642246,4.2898,3658.3,3658.2,2.73558482]
[1754536642446,4.153,3658.3,3658.2,3.80603474]
[1754536642839,0.001,3658.8,3658.5,2.73336066]
[1754536643016,4.2838,3658.7,3658.5,2.73336066]
[1754536643423,4.7427,3658.7,3658.5,2.73336066]
[1754536643625,4.7427,3658.7,3658.4,2.73342018]
[1754536643827,5.1946,3658.7,3658.4,2.73342018]
[1754536644742,5.1946,3658.7,3658.3,3.20558763]
[1754536645355,5.1946,3658.7,3658.3,0.4721]
[1754536645527,4.2838,3658.7,3658.2,0.73714992]
[1754536645727,4.2838,3658.7,3658.3,0.4721]
[1754536645942,0.1368,3658.7,3658.3,2.7335101]
[1754536646154,0.1368,3658.7,3658.6,2.73328595]
[1754536646451,4.2828,3658.7,3658.6,2.73328595]
[1754536646653,4.53701976,3658.7,3658.6,2.73328595]
[1754536647058,4.53701976,3658.7,3658.5,2.73334155]
[1754536647244,4.2828,3658.7,3658.5,2.73334155]
[1754536647450,4.2828,3658.7,3658.5,3.20544155]
[1754536648252,4.2828,3658.7,3658.5,2.73334155]
[1754536648462,4.2828,3658.7,3658.6,2.73328595]
[1754536648776,4.53705839,3658.7,3658.6,2.73328595]
[1754536648926,4.53705839,3658.7,3658.5,0.4721]
[1754536649128,4.2828,3658.7,3658.5,0.4721]
[1754536649326,4.2828,3658.7,3658.3,3.20559903]
[1754536649941,4.2828,3658.7,3658.3,2.73349903]
[1754536649942,4.7417,3658.7,3658.3,2.73349903]
[1754536650144,4.7417,3658.7,3658.4,0.4721]
[1754536651677,4.7417,3658.7,3658.4,3.20551812]
[1754536652835,4.7417,3658.7,3658.3,2.73349131]
[1754536653036,0.25431855,3658.6,3658.3,2.73349131]
[1754536653368,0.71321855,3658.6,3658.3,2.73349131]
[1754536654667,0.4589,3658.6,3658.3,3.20559131]
[1754536654974,4.2828,3658.7,3658.5,2.73336066]
[1754536655538,4.7417,3658.7,3658.5,2.73336066]
[1754536656472,4.2828,3658.7,3658.6,2.73328595]
[1754536656650,4.146,3658.7,3658.6,2.73328595]
[1754536657052,4.146,3658.7,3658.6,3.20538595]
[1754536658369,4.146,3658.7,3658.6,2.73328595]
[1754536658576,4.146,3658.7,3658.6,3.20538595]
[1754536658779,0.001,3658.8,3658.4,0.6089]
[1754536659072,0.001,3658.8,3658.7,2.73321124]
[1754536659239,4.143,3658.8,3658.7,2.73321124]
[1754536660170,4.6019,3658.8,3658.7,2.73321124]
[1754536661071,4.143,3658.8,3658.7,2.73321124]
[1754536664179,4.6019,3658.8,3658.7,2.73321124]
[1754536665480,4.5999,3658.8,3658.7,2.73321124]
[1754536666866,4.141,3658.8,3658.7,2.73321124]
[1754536668492,4.5999,3658.8,3658.7,2.73321124]
[1754536670269,0.001,3658.8,3658.7,3.19111124]
[1754536670461,0.001,3658.8,3658.7,13.86802461]
[1754536670792,0.001,3658.8,3658.7,4.19375843]
[1754536671799,0.001,3658.8,3658.7,18.03435672]
[1754536671971,0.001,3658.8,3658.7,18.00702461]
[1754536673173,0.001,3658.8,3658.7,8.33275843]
[1754536674413,0.001,3658.8,3658.7,8.07445843]
[1754536678317,0.001,3658.9,3658.8,2.73313654]
[1754536678486,0.001,3658.9,3658.8,3.90781112]
[1754536678889,0.001,3658.9,3658.8,3.93514248]
[1754536679321,0.001,3658.9,3658.8,3.90781112]
[1754536679531,0.001,3658.9,3658.8,3.93514248]
[1754536680492,0.001,3658.9,3658.8,3.67684248]
[1754536681811,0.001,3658.9,3658.8,3.93514248]
[1754536682007,0.001,3658.9,3658.8,3.90781112]
[1754536682388,1e-08,3658.9,3658.8,4.22684248]
[1754536682593,1e-08,3658.9,3658.8,4.48514248]
[1754536683190,1e-08,3658.9,3658.8,13.90110866]
[1754536683394,1e-08,3659.3,3659.2,3.28283777]
[1754536683714,1e-08,3659.5,3659.4,2.73268841]
[1754536683909,1e-08,3659.5,3659.4,6.89701529]
[1754536684224,1e-08,3659.5,3659.4,7.46438841]
[1754536684399,1e-08,3659.5,3659.4,7.74365182]
[1754536685625,1e-08,3659.5,3659.4,7.28575182]
[1754536686412,1e-08,3659.5,3659.4,7.74365182]
[1754536691642,1e-08,3659.5,3659.4,8.55195182]
[1754536691828,0.001,3659.6,3659.5,3.28261374]
[1754536691829,1e-08,3659.6,3659.5,3.28261374]
[1754536692029,1e-08,3659.6,3659.5,3.74108832]
[1754536692235,1e-08,3659.8,3659.7,2.7324644]
[1754536692430,1e-08,3659.8,3659.7,7.0052644]
[1754536692635,1e-08,3659.8,3659.7,7.79144818]
[1754536692834,1e-08,3659.9,3659.8,2.73238974]
[1754536693034,0.001,3660.2,3659.8,2.73238974]
[1754536693035,1e-08,3660.1,3660.0,2.73224043]
[1754536693208,1e-08,3660.1,3660.0,8.01294043]
[1754536694018,1e-08,3660.1,3660.0,8.27124043]
[1754536694220,1e-08,3660.2,3660.1,3.28216578]
[1754536694550,1e-08,3660.2,3660.1,3.74006578]
[1754536695451,1e-08,3660.2,3660.1,3.28216578]
[1754536696354,1e-08,3660.2,3660.1,3.74006578]
[1754536696555,1e-08,3660.2,3660.1,4.19854036]
[1754536697954,1e-08,3660.4,3660.3,2.7320165]
[1754536698155,1e-08,3660.4,3660.3,7.44533666]
[1754536698455,1e-08,3660.4,3660.3,8.0127165]
[1754536699652,1e-08,3660.6,3660.4,3.28194186]
[1754536699852,1e-08,3660.6,3660.5,4.49260245]
[1754536700158,1e-08,3660.6,3660.5,7.84446968]
[1754536700319,1e-08,3660.6,3660.5,8.36715101]
[1754536702356,1e-08,3660.6,3660.5,8.62545101]
[1754536702754,1e-08,3660.6,3660.5,8.36715101]
[1754536703668,0.001,3661.2,3660.8,0.55]
[1754536703964,0.001,3661.2,3661.1,3.41821951]
[1754536704122,0.001,3661.5,3661.4,2.73119571]
[1754536704329,0.4712,3661.5,3661.4,7.00599571]
[1754536704527,0.9136,3661.5,3661.4,7.46447029]
[1754536705568,0.9136,3661.5,3661.4,2.86799571]
[1754536705746,0.9136,3661.5,3660.9,2.73151497]
[1754536705947,9.67426618,3661.3,3660.7,2.73166332]
[1754536706166,0.9126,3661.2,3660.9,0.1368]
[1754536706551,0.9126,3661.1,3661.0,2.73143332]
[1754536706941,0.9126,3661.1,3661.0,2.86823332]
[1754536707356,0.9126,3661.1,3661.0,0.1368]
[1754536707859,0.9126,3661.1,3661.0,2.86829412]
[1754536708035,0.9126,3661.1,3661.0,0.1368]
[1754536708231,0.9126,3661.1,3660.8,2.73164335]
[1754536708564,0.9126,3661.0,3660.9,0.1368]
[1754536708728,0.001,3661.5,3660.9,0.1368]
[1754536708926,0.9126,3661.0,3660.9,0.1368]
[1754536709740,0.9126,3661.0,3660.9,2.86836873]
[1754536711253,0.9126,3661.0,3660.9,0.1368]
[1754536711459,0.9126,3661.0,3660.8,2.73162732]
[1754536711667,3.98645358,3661.5,3659.3,0.4832]
[1754536711668,10.58686618,3660.9,3659.3,0.4832]
[1754536711883,0.9126,3660.8,3660.4,0.1368]
[1754536712192,0.1368,3660.5,3660.1,2.73215075]
[1754536712364,0.9126,3660.4,3660.1,2.73215075]
[1754536712549,0.9126,3660.3,3660.1,2.73215075]
[1754536712746,0.1368,3660.5,3660.0,0.1368]
[1754536712747,0.9126,3660.2,3660.0,0.1368]
[1754536712976,0.1368,3660.5,3660.0,0.1368]
[1754536713172,0.9126,3660.1,3660.0,2.86904043]
[1754536713380,0.9126,3660.1,3660.0,0.1368]
[1754536713577,0.9126,3660.1,3660.0,2.86904043]
[1754536714296,0.9126,3660.1,3660.0,0.1368]
[1754536715444,12.05554811,3660.1,3659.8,0.002]
[1754536715672,0.9126,3660.0,3659.8,0.002]
[1754536715857,0.1368,3659.9,3659.8,0.002]
[1754536716077,1.0494,3659.9,3659.8,0.002]
[1754536727614,6.78171509,3659.9,3659.8,0.002]
[1754536727913,9.2801081,3659.9,3659.8,0.002]
[1754536728289,9.42007832,3659.9,3659.8,0.002]
[1754536728703,9.2801081,3659.9,3659.8,0.002]
[1754536731984,9.8301081,3659.9,3659.8,0.002]
[1754536745433,8.3675081,3659.9,3659.8,0.002]
[1754536745614,20.60848127,3659.9,3659.8,0.002]
[1754536749231,5.86911509,3659.9,3659.8,0.002]
[1754536749547,20.61148127,3659.9,3659.8,0.002]
[1754536750050,19.68638127,3659.9,3659.8,0.002]
[1754536750616,20.14478127,3659.9,3659.8,0.002]
[1754536750813,3.1368,3659.9,3659.8,0.002]
[1754536751045,7.2798,3659.9,3659.8,0.4719]
[1754536751348,10.47051509,3659.9,3659.8,0.002]
[1754536751644,10.01211509,3659.9,3659.8,0.002]
[1754536752012,10.01211509,3659.9,3659.8,0.4719]
[1754536752413,5.86911509,3659.9,3659.8,0.4719]
[1754536752614,10.01111509,3659.9,3659.8,0.4719]
[1754536752926,10.01111509,3659.9,3659.8,0.002]
[1754536753553,12.18613177,3659.9,3659.8,0.002]
[1754536753737,12.65283177,3659.9,3659.8,0.002]
[1754536753940,13.20283177,3659.9,3659.8,0.002]
[1754536756519,2.73283777,3659.2,3659.1,0.04]
[1754536756738,16.54910395,3659.2,3659.1,0.04]
[1754536756948,19.54910395,3659.2,3659.1,0.04]
[1754536757161,19.80307318,3659.2,3659.1,0.04]
[1754536757452,21.94114059,3659.2,3659.1,0.04]
[1754536757656,22.40784059,3659.2,3659.1,0.04]
[1754536757954,17.20703541,3659.2,3659.1,0.5099]
[1754536758158,7.53276923,3659.2,3659.1,0.5099]
[1754536758918,10.265607,3659.2,3659.1,0.5099]
[1754536759124,10.265607,3659.2,3659.1,0.04]
[1754536759856,11.205607,3659.2,3659.1,0.04]
[1754536761844,12.02283784,3659.2,3659.1,0.04]
[1754536762155,2.73291246,3659.1,3658.8,0.002]
[1754536762317,2.98688169,3659.1,3658.8,0.002]
[1754536762520,3.92688169,3659.1,3658.8,0.002]
[1754536762717,6.65554355,3659.1,3658.8,0.002]
[1754536763124,9.86154355,3659.1,3658.8,0.002]
[1754536763525,10.32604355,3659.1,3658.8,0.002]
[1754536764560,10.80154355,3659.1,3658.8,0.002]
[1754536768422,7.12863109,3659.1,3658.8,0.002]
[1754536768619,4.39996923,3659.1,3659.0,0.4757]
[1754536769035,7.13288169,3659.1,3659.0,0.4757]
[1754536769276,2.98688169,3659.1,3659.0,0.002]
[1754536769559,10.01895321,3659.1,3659.0,0.002]
[1754536771046,10.01848785,3659.1,3659.0,0.002]
[1754536774183,10.29228785,3659.1,3659.0,0.002]
[1754536774497,10.01848785,3659.1,3659.0,0.002]
[1754536776377,9.07848785,3659.1,3659.0,0.002]
[1754536776545,6.34557539,3659.1,3659.0,0.002]
[1754536776741,2.98641633,3659.1,3659.0,0.002]
[1754536776946,7.12941633,3659.1,3659.0,0.002]
[1754536777380,7.59391633,3659.1,3659.0,0.002]
[1754536777996,7.12941633,3659.1,3659.0,0.002]
[1754536779108,7.12841633,3659.1,3659.0,0.4757]
[1754536779256,14.30841633,3659.1,3659.0,0.4757]
[1754536779456,14.30841633,3659.1,3659.0,0.002]
[1754536781963,16.31185145,3659.1,3659.0,0.002]
[1754536782589,15.83635145,3659.1,3659.0,0.002]
[1754536784298,16.31185145,3659.1,3659.0,0.002]
[1754536787475,15.83635145,3659.1,3659.0,0.002]
[1754536789007,16.31185145,3659.1,3659.0,0.002]
[1754536789231,15.37185145,3659.1,3659.0,0.002]
[1754536789549,15.83635145,3659.1,3659.0,0.002]
[1754536790518,15.36885145,3659.1,3659.0,0.002]
[1754536790890,15.36985145,3659.1,3659.0,0.002]
[1754536791622,7.43450387,3659.1,3659.0,0.002]
[1754536791785,7.53130387,3659.1,3659.0,0.7304]
[1754536792600,7.2778,3659.1,3659.0,0.7304]
[1754536793178,3.1378,3659.1,3659.0,0.7304]
[1754536793430,7.2778,3659.1,3659.0,0.7304]
[1754536793799,4.2778,3659.1,3659.0,0.7304]
[1754536794205,4.2778,3659.1,3659.0,0.4721]
[1754536800444,4.706,3659.1,3659.0,0.002]
[1754536801240,5.1609,3659.1,3659.0,0.002]
[1754536801619,4.2778,3659.1,3659.0,0.4721]
[1754536801805,0.001,3659.1,3659.0,0.4721]
[1754536802111,4.14,3659.1,3659.0,0.7304]
[1754536802440,4.14,3659.1,3659.0,0.4721]
[1754536803142,0.001,3659.1,3659.0,3.20508715]
[1754536803442,4.14,3659.1,3659.0,1.36413235]
[1754536803738,4.14,3659.1,3659.0,0.4721]
[1754536804329,14.24246618,3659.1,3659.0,0.002]
[1754536804533,14.69736618,3659.1,3659.0,0.002]
[1754536805444,14.24246618,3659.1,3659.0,0.002]
[1754536805741,13.81426618,3659.1,3659.0,0.002]
[1754536809547,13.81426618,3659.1,3659.0,0.4721]
[1754536810116,4.14,3659.1,3659.0,0.002]
[1754536810317,4.14,3659.1,3659.0,0.4721]
[1754536811918,4.139,3659.1,3659.0,3.20508715]
[1754536812166,4.139,3659.1,3659.0,0.4721]
[1754536812449,4.139,3659.1,3659.0,0.002]
[1754536812629,4.139,3659.1,3659.0,0.4721]
[1754536813416,4.139,3659.1,3659.0,0.002]
[1754536816354,4.139,3659.1,3659.0,0.4721]
[1754536817321,4.139,3659.1,3659.0,3.20508715]
[1754536817520,4.139,3659.1,3659.0,3.83881059]
[1754536818063,4.139,3659.1,3659.0,1.10582344]
[1754536818365,4.139,3659.1,3659.0,0.002]
[1754536818734,4.139,3659.1,3659.0,0.4721]
[1754536821260,4.139,3659.1,3659.0,3.20508715]
[1754536821563,4.139,3659.1,3659.0,0.4721]
[1754536821880,4.139,3659.1,3659.0,3.20508715]
[1754536822375,4.139,3659.1,3659.0,0.4721]
[1754536823873,4.139,3659.1,3659.0,3.20508715]
[1754536825369,4.139,3659.1,3659.0,0.4721]
[1754536825526,4.139,3659.1,3659.0,0.002]
[1754536825726,5.0343,3659.1,3659.0,0.002]
[1754536827494,4.5672,3659.1,3659.0,2.73498715]
[1754536828259,5.0343,3659.1,3659.0,2.73498715]
[1754536828897,4.5672,3659.1,3659.0,2.73498715]
[1754536830310,4.5672,3659.1,3659.0,0.002]
[1754536830696,5.0343,3659.1,3658.9,2.48555172]
[1754536831464,10.10246618,3659.0,3658.8,0.002]
[1754536831795,4.138,3658.9,3658.8,0.002]
[1754536832201,5.0333,3658.9,3658.8,0.002]
[1754536832604,4.138,3658.9,3658.8,2.73513654]
[1754536832791,4.138,3658.9,3658.8,3.22813654]
[1754536832989,0.1378,3659.1,3658.8,3.22813654]
[1754536833191,0.001,3659.1,3659.0,2.73298715]
[1754536833571,4.139,3659.1,3659.0,3.36278715]
[1754536833880,4.139,3659.1,3659.0,3.62108715]
[1754536834707,4.139,3659.1,3659.0,3.36278715]
[1754536834926,4.139,3659.1,3659.0,4.00668888]
[1754536836322,4.5672,3659.1,3659.0,2.86978715]
[1754536836943,4.139,3659.1,3659.0,2.86978715]
[1754536837120,4.139,3659.1,3659.0,3.36278715]
[1754536843473,4.139,3659.1,3659.0,2.86978715]
[1754536844137,0.001,3659.1,3659.0,2.86978715]
[1754536844473,0.001,3659.1,3659.0,3.97297952]
[1754536844638,0.8963,3659.1,3659.0,2.86978715]
[1754536844965,2.73298715,3659.0,3658.9,0.002]
[1754536845126,7.76528715,3659.0,3658.9,0.002]
[1754536845332,2.73306184,3658.9,3658.7,0.002]
[1754536845534,12.81106618,3658.8,3658.0,0.002]
[1754536845758,2.73358482,3658.2,3658.0,0.002]
[1754536845963,2.73373428,3658.0,3657.2,0.05]
[1754536846178,7.00753428,3658.0,3657.2,0.05]
[1754536846374,7.90283428,3658.0,3657.2,0.05]
[1754536847183,8.15607736,3658.0,3657.2,0.05]
[1754536847382,3.28380901,3657.9,3657.2,0.05]
[1754536847580,9.7887524,3657.9,3657.2,0.05]
[1754536848367,6.50494339,3657.9,3657.2,0.05]
[1754536848701,13.3767524,3657.9,3657.2,0.05]
[1754536850796,6.50494339,3657.9,3657.2,0.05]
[1754536850966,10.64294339,3657.9,3657.2,2.78426002]
[1754536851162,10.38970031,3657.9,3657.2,2.78426002]
[1754536851498,6.25170031,3657.9,3657.5,2.73409883]
[1754536851703,6.25170031,3657.9,3657.6,2.73400961]
[1754536851984,0.9099,3658.4,3657.9,2.73380901]
[1754536852189,4.138,3658.3,3658.1,2.7336479]
[1754536852386,4.138,3658.3,3657.9,0.4694]
[1754536852588,4.138,3658.3,3658.0,2.73367116]
[1754536852950,4.138,3658.3,3657.9,3.2031961]
[1754536853490,5.0479,3658.3,3657.9,3.2031961]
[1754536853655,5.0479,3658.3,3658.0,2.73373428]
[1754536854602,4.138,3658.3,3658.1,2.73359436]
[1754536854820,4.139,3658.2,3658.1,3.20305955]
[1754536854966,9.67426618,3658.5,3658.2,2.73353297]
[1754536855156,4.139,3658.4,3658.2,2.73353297]
[1754536856000,10.58416618,3658.5,3658.3,2.73348263]
[1754536856207,4.139,3658.4,3658.3,2.73348263]
[1754536857054,5.0489,3658.4,3657.8,0.002]
[1754536857278,9.67426618,3657.9,3657.8,0.002]
[1754536857493,13.81326618,3657.9,3657.8,0.002]
[1754536857674,14.72316618,3657.9,3657.8,0.002]
[1754536860874,13.81326618,3657.9,3657.8,2.73588375]
[1754536861164,4.139,3657.9,3657.8,3.20528375]
[1754536861479,0.1368,3658.1,3658.0,2.73373428]
[1754536861822,4.2758,3658.1,3658.0,2.73373428]
[1754536862025,4.2758,3658.1,3658.0,3.20313428]
[1754536862322,4.139,3658.1,3658.0,2.73373428]
[1754536863975,4.139,3658.1,3657.9,2.7337912]
[1754536864720,4.139,3658.1,3657.8,0.4714]
[1754536864965,4.139,3658.1,3657.9,2.73373567]
[1754536865483,4.139,3658.1,3657.8,2.73586478]
[1754536865815,0.9099,3658.0,3657.8,0.002]
[1754536865994,4.139,3657.9,3657.8,0.002]
[1754536867126,5.0489,3657.9,3657.8,0.002]
[1754536867325,14.85996618,3657.9,3657.8,0.002]
[1754536868032,19.07977181,3657.9,3657.8,0.002]
[1754536868322,18.94297181,3657.9,3657.8,0.002]
[1754536868699,16.2091628,3657.9,3657.8,0.002]
[1754536869224,13.81426618,3657.9,3657.8,0.002]
[1754536869390,4.139,3657.9,3657.8,0.002]
[1754536870322,14.25446618,3657.9,3657.8,0.002]
[1754536870521,14.72316618,3657.9,3657.8,0.002]
[1754536871608,14.25446618,3657.9,3657.8,0.002]
[1754536871930,13.81326618,3657.9,3657.8,0.002]
[1754536872821,14.25446618,3657.9,3657.8,0.002]
[1754536873073,9.67426618,3658.2,3657.8,0.002]
[1754536873232,7.18,3658.6,3657.8,0.4714]
[1754536873437,4.39194782,3658.5,3658.0,2.73370829]
[1754536873667,3.0,3658.5,3658.0,2.73370829]
[1754536873866,4.139,3658.4,3658.1,2.73360552]
[1754536874049,4.139,3658.3,3658.0,2.73371807]
[1754536874357,4.139,3658.3,3657.8,3.20527573]
[1754536874657,4.139,3658.3,3658.1,2.73364201]
[1754536874866,4.139,3658.3,3658.1,3.20304201]
[1754536875052,4.139,3658.3,3658.2,2.73358482]
[1754536875559,4.139,3658.3,3658.2,3.20298482]
[1754536875739,9.67526618,3658.7,3658.2,3.20298482]
[1754536875942,4.139,3658.6,3658.2,3.20298482]
[1754536876366,4.139,3658.6,3658.3,0.4694]
[1754536876575,4.139,3658.6,3658.4,2.73343538]
[1754536876880,4.139,3658.6,3658.2,3.20291531]
[1754536877043,4.139,3658.6,3658.3,2.73350294]
[1754536877246,4.139,3658.6,3658.3,3.20290294]
[1754536877446,4.139,3658.5,3658.3,3.20290294]
[1754536877646,4.139,3658.5,3658.2,2.73356601]
[1754536877847,4.139,3658.5,3658.3,2.73349546]
[1754536878364,4.139,3658.5,3658.3,3.20289546]
[1754536878560,0.1378,3658.6,3658.1,0.1368]
[1754536878765,4.139,3658.5,3658.4,3.20283002]
[1754536879347,0.001,3658.6,3658.5,2.73336066]
[1754536879607,4.14,3658.6,3658.5,2.73336066]
[1754536880762,4.6132,3658.6,3658.4,2.73342581]
[1754536881793,4.14,3658.6,3658.5,2.73336066]
[1754536883511,4.14,3658.6,3658.4,2.7334215]
[1754536883812,14.26976618,3658.6,3658.3,2.87030443]
[1754536884108,0.4732,3658.5,3658.3,2.87030443]
[1754536884307,4.138,3658.4,3658.3,2.87030443]
[1754536885193,5.0667,3658.4,3658.3,2.87030443]
[1754536885889,5.0667,3658.4,3658.3,0.1368]
[1754536886090,5.0667,3658.4,3658.1,2.7335909]
[1754536886292,9.67426618,3658.2,3658.1,2.7335909]
[1754536886592,14.74096618,3658.2,3658.1,2.7335909]
[1754536886892,14.74096618,3658.2,3658.1,2.8703909]
[1754536888085,14.74096618,3658.2,3658.1,0.1368]
[1754536888287,14.74096618,3658.2,3658.1,2.87045955]
[1754536888982,5.0667,3658.2,3658.1,2.87045955]
[1754536889392,4.6112,3658.2,3658.1,2.87045955]
[1754536889697,4.6112,3658.2,3658.1,0.1368]
[1754536890189,5.0667,3658.2,3658.1,0.1368]